fUST/lending_fUST_20240308
["ID","MTS","AMOUNT","RATE_DAILY","PERIOD"]
[317610635,1709872239159,-500.0,0.00022798,2]
[317610637,1709872239168,-500.0,0.00022798,2]
[317610639,1709872239177,-500.0,0.00022798,2]
[317610641,1709872239186,-500.0,0.00022798,2]
[317610643,1709872239195,-856.38,0.00022798,2]
[317610645,1709872239205,-500.0,0.00022798,2]
[317610647,1709872239215,-500.0,0.00022798,2]
[317610649,1709872239224,-500.0,0.00022798,2]
[317610651,1709872239234,-500.0,0.00022798,2]
[317610653,1709872239243,-1620.53,0.00022798,2]
[317610655,1709872239253,-311.79,0.00022798,2]
[317610657,1709872239262,-749.75,0.00022798,2]
[317610659,1709872239271,-500.0,0.00022798,2]
[317610661,1709872239280,-753.61,0.00022798,2]
[317610663,1709872239289,-500.0,0.00022798,2]
[317610665,1709872239299,-500.0,0.00022798,2]
[317610667,1709872239308,-12623.53,0.00022798,2]
[317610669,1709872239317,-3045.53,0.00022798,2]
[317610671,1709872239327,-500.0,0.00022798,2]
[317610673,1709872239336,-1180.42,0.00022798,2]
[317610675,1709872239346,-8717.1,0.00022798,2]
[317610677,1709872239354,-500.0,0.00022798,2]
[317610679,1709872239363,-353.71641581,0.00022799,2]
[317610681,1709872239372,-302.77948741,0.00022799,2]
[317610682,1709872239381,-500.0,0.00022799,2]
[317610684,1709872239390,-500.0,0.00022799,2]
[317610686,1709872239399,-500.0,0.00022799,2]
[317610688,1709872239409,-205.81510845,0.00022799,2]
[317610690,1709872239418,-1502.06,0.00022799,2]
[317610692,1709872239427,-500.0,0.00022799,2]
[317610694,1709872239436,-500.0,0.00022799,2]
[317610696,1709872239446,-500.0,0.00022799,2]
[317610698,1709872239455,-500.0,0.00022799,2]
[317610700,1709872239464,-500.0,0.00022799,2]
[317610702,1709872239474,-500.0,0.00022799,2]
[317610704,1709872239483,-500.0,0.00022799,2]
[317610706,1709872239492,-500.0,0.00022799,2]
[317610708,1709872239501,-500.0,0.00022799,2]
[317610710,1709872239510,-500.0,0.00022799,2]
[317610712,1709872239519,-500.0,0.00022799,2]
[317610714,1709872239528,-500.0,0.00022799,2]
[317610716,1709872239537,-500.0,0.00022799,2]
[317610718,1709872239547,-500.0,0.00022799,2]
[317610720,1709872239556,-500.0,0.00022799,2]
[317610722,1709872239566,-500.0,0.00022799,2]
[317610724,1709872239575,-500.0,0.00022799,2]
[317610726,1709872239584,-1329.73,0.00022799,2]
[317610728,1709872239594,-500.0,0.00022799,2]
[317610730,1709872239603,-500.0,0.00022799,2]
[317610732,1709872239612,-500.0,0.00022799,2]
[317610734,1709872239623,-500.0,0.00022799,2]
[317610736,1709872239632,-175.45545373,0.00022799,2]
[317610739,1709872239641,-500.0,0.00022799,2]
[317610740,1709872239651,-500.0,0.00022799,2]
[317610742,1709872239660,-500.0,0.00022799,2]
[317610744,1709872239669,-500.0,0.00022799,2]
[317610746,1709872239678,-500.0,0.00022799,2]
[317610748,1709872239687,-500.0,0.00022799,2]
[317610750,1709872239696,-500.0,0.00022799,2]
[317610752,1709872239705,-580.46340032,0.00022799,2]
[317610754,1709872239715,-500.0,0.00022799,2]
[317610756,1709872239725,-503.87326634,0.00022799,2]
[317610758,1709872239734,-500.0,0.00022799,2]
[317610760,1709872239743,-3602.61,0.00022799,2]
[317610762,1709872239752,-1235.01,0.00022799,2]
[317610764,1709872239762,-500.0,0.00022799,2]
[317610766,1709872239771,-563.70051556,0.00022799,2]
[317610768,1709872239780,-500.0,0.00022799,2]
[317610770,1709872239789,-481.51280069,0.00022799,2]
[317610773,1709872239798,-215.55695866,0.00022799,2]
[317610774,1709872239807,-500.0,0.00022799,2]
[317610777,1709872239818,-500.0,0.00022799,2]
[317610778,1709872239827,-500.0,0.00022799,2]
[317610779,1709872239836,-500.0,0.00022799,2]
[317610780,1709872239845,-500.0,0.00022799,2]
[317610781,1709872239854,-500.0,0.00022799,2]
[317610782,1709872239863,-500.0,0.00022799,2]
[317610783,1709872239873,-856.38,0.00022799,2]
[317610784,1709872239882,-500.0,0.00022799,2]
[317610786,1709872239891,-500.0,0.00022799,2]
[317610788,1709872239900,-648.20230694,0.00022799,2]
[317610790,1709872239909,-500.0,0.00022799,2]
[317610791,1709872239918,-500.0,0.00022799,2]
[317610793,1709872239927,-500.0,0.00022799,2]
[317610795,1709872239936,-500.0,0.00022799,2]
[317610798,1709872239946,-622.80832864,0.00022799,2]
[317610800,1709872239955,-500.0,0.00022799,2]
[317610802,1709872239964,-500.0,0.00022799,2]
[317610803,1709872239973,-1620.53,0.00022799,2]
[317610805,1709872239982,-500.0,0.00022799,2]
[317610808,1709872239992,-500.0,0.00022799,2]
[317610810,1709872240001,-500.0,0.00022799,2]
[317610811,1709872240011,-534.3,0.00022799,2]
[317610813,1709872240020,-500.0,0.00022799,2]
[317610816,1709872240030,-749.75,0.00022799,2]
[317610818,1709872240039,-500.0,0.00022799,2]
[317610820,1709872240048,-500.0,0.00022799,2]
[317610822,1709872240058,-753.61,0.00022799,2]
[317610824,1709872240070,-500.0,0.00022799,2]
[317610825,1709872240080,-500.0,0.00022799,2]
[317610827,1709872240090,-500.0,0.00022799,2]
[317610830,1709872240100,-500.0,0.00022799,2]
[317610832,1709872240112,-12623.53,0.00022799,2]
[317610834,1709872240122,-500.0,0.00022799,2]
[317610836,1709872240131,-500.0,0.00022799,2]
[317610838,1709872240140,-1235.55,0.00022799,2]
[317610839,1709872240150,-3045.53,0.00022799,2]
[317610841,1709872240163,-500.0,0.00022799,2]
[317610844,1709872240172,-500.0,0.00022799,2]
[317610846,1709872240181,-500.0,0.00022799,2]
[317610848,1709872240192,-1180.42,0.00022799,2]
[317610850,1709872240201,-568.25529583,0.00022799,30]
[317610852,1709872240210,-500.42789894,0.00022799,2]
[317610853,1709872240220,-500.0,0.00022799,2]
[317610855,1709872240230,-8717.1,0.00022799,2]
[317610857,1709872240239,-500.0,0.00022799,2]
[317610859,1709872240249,-500.0,0.00022799,2]
[317610862,1709872240259,-598.95792449,0.00022799,2]
[317610863,1709872240275,-31970.45567734,0.000228,2]
[317610867,1709872240315,-2000.0,0.000228,2]
[317610871,1709872240325,-162.4894416,0.000228,2]
[317610874,1709872240334,-2000.0,0.0002281,2]
[317610877,1709872240343,-2000.0,0.0002282,2]
[317610879,1709872240353,-2000.0,0.0002283,2]
[317610881,1709872240363,-2000.0,0.0002284,2]
[317610883,1709872240372,-2000.0,0.0002285,2]
[317610886,1709872240381,-500.0,0.00022859,2]
[317610888,1709872240391,-12623.53,0.00022859,2]
[317610890,1709872240401,-2000.0,0.0002286,2]
[317610892,1709872240410,-3602.61,0.00022869,2]
[317610894,1709872240419,-500.0,0.00022869,2]
[317610896,1709872240428,-500.0,0.00022869,2]
[317610898,1709872240438,-500.0,0.00022869,2]
[317610900,1709872240448,-500.0,0.00022869,2]
[317610902,1709872240457,-500.0,0.00022869,2]
[317610904,1709872240465,-8717.1,0.00022869,2]
[317610906,1709872240475,-2000.0,0.0002287,2]
[317610908,1709872240485,-2000.0,0.0002288,2]
[317610910,1709872240494,-3058.77,0.0002289,2]
[317610912,1709872240504,-1235.01,0.00022897,2]
[317610914,1709872240513,-856.38,0.00022897,2]
[317610916,1709872240522,-500.0,0.00022897,2]
[317610918,1709872240532,-1620.53,0.00022897,2]
[317610920,1709872240540,-749.75,0.00022897,2]
[317610922,1709872240549,-753.61,0.00022897,2]
[317610924,1709872240558,-500.0,0.00022897,2]
[317610926,1709872240567,-500.0,0.00022897,2]
[317610928,1709872240576,-12623.53,0.00022897,2]
[317610930,1709872240586,-3045.53,0.00022897,2]
[317610932,1709872240596,-500.0,0.00022897,2]
[317610934,1709872240605,-1180.42,0.00022897,2]
[317610936,1709872240615,-203.79821992,0.00022897,2]
[317610938,1709872240624,-500.0,0.00022897,2]
[317610940,1709872240634,-500.0,0.00022897,2]
[317610942,1709872240643,-500.0,0.00022897,2]
[317610944,1709872240652,-480.57555407,0.00022897,2]
[317610946,1709872240661,-500.0,0.00022897,2]
[317610948,1709872240672,-500.0,0.00022897,2]
[317610950,1709872240680,-500.0,0.00022898,2]
[317610952,1709872240689,-500.0,0.00022898,2]
[317610954,1709872240699,-1502.06,0.00022898,2]
[317610956,1709872240708,-500.0,0.00022898,2]
[317610958,1709872240717,-500.0,0.00022898,2]
[317610960,1709872240728,-500.0,0.00022898,2]
[317610963,1709872240736,-500.0,0.00022898,2]
[317610964,1709872240745,-336.7,0.00022898,2]
[317610967,1709872240755,-500.0,0.00022898,2]
[317610968,1709872240764,-500.0,0.00022898,2]
[317610971,1709872240774,-152.20730543,0.00022898,2]
[317610972,1709872240785,-500.0,0.00022898,2]
[317610975,1709872240796,-515.06248666,0.00022898,2]
[317610977,1709872240806,-500.0,0.00022898,2]
[317610979,1709872240816,-500.0,0.00022898,2]
[317610981,1709872240827,-500.0,0.00022898,2]
[317610983,1709872240837,-188.33221354,0.00022898,2]
[317610985,1709872240846,-1329.73,0.00022898,2]
[317610986,1709872240855,-500.0,0.00022898,2]
[317610989,1709872240865,-500.0,0.00022898,2]
[317610990,1709872240874,-500.0,0.00022898,2]
[317610992,1709872240883,-500.0,0.00022898,2]
[317610995,1709872240892,-500.0,0.00022898,2]
[317610996,1709872240901,-500.0,0.00022898,2]
[317610999,1709872240910,-500.0,0.00022898,2]
[317611001,1709872240919,-508.03250909,0.00022898,2]
[317611003,1709872240929,-500.0,0.00022898,2]
[317611005,1709872240938,-500.0,0.00022898,2]
[317611007,1709872240947,-3602.61,0.00022898,2]
[317611008,1709872240956,-1235.01,0.00022898,2]
[317611011,1709872240965,-500.0,0.00022898,2]
[317611012,1709872240974,-500.0,0.00022898,2]
[317611015,1709872240984,-500.0,0.00022898,2]
[317611017,1709872240993,-500.0,0.00022898,2]
[317611019,1709872241001,-500.0,0.00022898,2]
[317611021,1709872241010,-856.38,0.00022898,2]
[317611023,1709872241019,-500.0,0.00022898,2]
[317611025,1709872241029,-500.0,0.00022898,2]
[317611026,1709872241038,-500.0,0.00022898,2]
[317611029,1709872241049,-1620.53,0.00022898,2]
[317611030,1709872241058,-500.0,0.00022898,2]
[317611033,1709872241069,-500.0,0.00022898,2]
[317611034,1709872241082,-500.0,0.00022898,2]
[317611037,1709872241091,-534.3,0.00022898,2]
[317611039,1709872241101,-749.75,0.00022898,2]
[317611041,1709872241110,-753.61,0.00022898,2]
[317611042,1709872241120,-500.0,0.00022898,2]
[317611045,1709872241130,-500.0,0.00022898,2]
[317611046,1709872241139,-12623.53,0.00022898,2]
[317611049,1709872241151,-500.0,0.00022898,2]
[317611050,1709872241161,-1235.55,0.00022898,2]
[317611052,1709872241171,-3045.53,0.00022898,2]
[317611055,1709872241180,-500.0,0.00022898,2]
[317611056,1709872241189,-500.0,0.00022898,2]
[317611059,1709872241199,-500.0,0.00022898,2]
[317611061,1709872241208,-1180.42,0.00022898,2]
[317611063,1709872241218,-500.0,0.00022898,2]
[317611064,1709872241227,-8717.1,0.00022898,2]
[317611067,1709872241237,-500.0,0.00022898,2]
[317611069,1709872241246,-500.0,0.00022898,2]
[317611071,1709872241256,-3602.61,0.00022899,2]
[317611073,1709872241265,-500.0,0.00022899,2]
[317611074,1709872241274,-500.0,0.00022899,2]
[317611077,1709872241283,-500.0,0.00022899,2]
[317611078,1709872241292,-500.0,0.00022899,2]
[317611081,1709872241303,-500.0,0.00022899,2]
[317611083,1709872241312,-500.0,0.00022899,2]
[317611085,1709872241321,-534.3,0.00022899,2]
[317611087,1709872241330,-749.75,0.00022899,2]
[317611089,1709872241340,-500.0,0.00022899,2]
[317611091,1709872241350,-500.0,0.00022899,2]
[317611093,1709872241359,-500.0,0.00022899,2]
[317611095,1709872241368,-1235.55,0.00022899,2]
[317611097,1709872241377,-1180.42,0.00022899,2]
[317611099,1709872241387,-8717.1,0.00022899,2]
[317611101,1709872241396,-163.36577535,0.00022899,2]
[317611103,1709872241405,-31547.08540001,0.000229,2]
[317611105,1709872241414,-194.64833249,0.000229,2]
[317611106,1709872241424,-194.64833249,0.000229,2]
[317611108,1709872241434,-194.64,0.000229,2]
[317611111,1709872241443,-12623.53,0.00022958,2]
[317611112,1709872241452,-321.4034774,0.00022959,2]
[317611115,1709872241462,-153.0,0.00022959,2]
[317611117,1709872241471,-1235.01,0.00022982,2]
[317611119,1709872241481,-856.38,0.00022982,2]
[317611120,1709872241491,-500.0,0.00022982,2]
[317611123,1709872241502,-1620.53,0.00022982,2]
[317611125,1709872241515,-753.61,0.00022982,2]
[317611128,1709872241529,-3045.53,0.00022982,2]
[317611131,1709872241540,-500.0,0.00022982,2]
[317611135,1709872241550,-500.0,0.00022983,2]
[317611138,1709872241562,-500.0,0.00022983,2]
[317611141,1709872241574,-1502.06,0.00022983,2]
[317611144,1709872241584,-500.0,0.00022983,2]
[317611148,1709872241594,-500.0,0.00022983,2]
[317611151,1709872241606,-500.0,0.00022983,2]
[317611154,1709872241617,-500.0,0.00022983,2]
[317611157,1709872241628,-500.0,0.00022983,2]
[317611159,1709872241639,-401.70020613,0.00022983,2]
[317611161,1709872241649,-500.0,0.00022983,2]
[317611163,1709872241659,-1329.73,0.00022983,2]
[317611165,1709872241668,-500.0,0.00022983,2]
[317611167,1709872241679,-500.0,0.00022983,2]
[317611169,1709872241690,-500.0,0.00022983,2]
[317611171,1709872241701,-500.0,0.00022983,2]
[317611173,1709872241711,-500.0,0.00022983,2]
[317611175,1709872241721,-500.0,0.00022983,2]
[317611177,1709872241731,-513.51101438,0.00022983,2]
[317611178,1709872241742,-500.0,0.00022983,2]
[317611181,1709872241753,-500.0,0.00022983,2]
[317611183,1709872241763,-749.75,0.00022983,2]
[317611194,1709872241861,-500.0,0.00022983,2]
[317611196,1709872241873,-12623.53,0.00022983,2]
[317611198,1709872241884,-174.54,0.00022983,2]
[317611200,1709872241894,-1180.42,0.00022983,2]
[317611202,1709872241904,-500.0,0.00022983,2]
[317611204,1709872241914,-500.0,0.00022983,2]
[317611206,1709872241925,-3602.61,0.00022984,2]
[317611208,1709872241935,-1235.01,0.00022984,2]
[317611210,1709872241946,-500.0,0.00022984,2]
[317611213,1709872241956,-500.0,0.00022984,2]
[317611215,1709872241967,-500.0,0.00022984,2]
[317611217,1709872241978,-500.0,0.00022984,2]
[317611219,1709872241987,-856.38,0.00022984,2]
[317611221,1709872241997,-500.0,0.00022984,2]
[317611223,1709872242007,-500.0,0.00022984,2]
[317611224,1709872242018,-1620.53,0.00022984,2]
[317611226,1709872242027,-500.0,0.00022984,2]
[317611228,1709872242038,-534.3,0.00022984,2]
[317611230,1709872242048,-753.61,0.00022984,2]
[317611232,1709872242058,-500.0,0.00022984,2]
[317611234,1709872242068,-1235.55,0.00022984,2]
[317611236,1709872242081,-3045.53,0.00022984,2]
[317611239,1709872242091,-500.0,0.00022984,2]
[317611241,1709872242103,-8717.1,0.00022984,2]
[317611243,1709872242114,-500.0,0.00022985,2]
[317611245,1709872242124,-206.77533046,0.00022985,2]
[317611247,1709872242134,-500.0,0.00022985,2]
[317611249,1709872242143,-1502.06,0.00022985,2]
[317611251,1709872242155,-500.0,0.00022985,2]
[317611253,1709872242164,-500.0,0.00022985,2]
[317611255,1709872242174,-500.0,0.00022985,2]
[317611257,1709872242183,-500.0,0.00022985,2]
[317611259,1709872242192,-363.46911168,0.00022985,2]
[317611261,1709872242201,-1329.73,0.00022985,2]
[317611263,1709872242210,-500.0,0.00022985,2]
[317611265,1709872242219,-500.0,0.00022985,2]
[317611267,1709872242229,-442.91982761,0.00022985,2]
[317611269,1709872242239,-500.0,0.00022985,2]
[317611271,1709872242250,-500.0,0.00022985,2]
[317611273,1709872242259,-500.0,0.00022985,2]
[317611275,1709872242269,-3602.61,0.00022985,2]
[317611277,1709872242278,-500.0,0.00022985,2]
[317611279,1709872242287,-500.0,0.00022985,2]
[317611281,1709872242297,-749.75,0.00022985,2]
[317611283,1709872242305,-500.0,0.00022985,2]
[317611285,1709872242315,-12623.53,0.00022985,2]
[317611287,1709872242325,-1180.42,0.00022985,2]
[317611289,1709872242335,-500.0,0.00022985,2]
[317611291,1709872242344,-8717.1,0.00022985,2]
[317611293,1709872242354,-633.06473816,0.00022985,2]
[317611295,1709872242363,-3418.99389728,0.00022986,3]
[317611297,1709872242372,-1000.0,0.00022986,7]
[317611299,1709872242380,-9439.13811553,0.00022986,3]
[317611301,1709872242390,-525.0,0.00022986,2]
[317611303,1709872242400,-3602.61,0.00022995,2]
[317611305,1709872242408,-1235.01,0.00022995,2]
[317611307,1709872242418,-1235.01,0.00022995,2]
[317611309,1709872242427,-500.0,0.00022995,2]
[317611311,1709872242436,-500.0,0.00022995,2]
[317611313,1709872242444,-500.0,0.00022995,2]
[317611315,1709872242453,-500.0,0.00022995,2]
[317611317,1709872242463,-856.38,0.00022995,2]
[317611319,1709872242473,-856.38,0.00022995,2]
[317611321,1709872242483,-500.0,0.00022995,2]
[317611323,1709872242494,-500.0,0.00022995,2]
[317611325,1709872242504,-375.27,0.00022995,2]
[317611327,1709872242514,-1620.53,0.00022995,2]
[317611329,1709872242523,-1620.53,0.00022995,2]
[317611331,1709872242534,-500.0,0.00022995,2]
[317611333,1709872242542,-534.3,0.00022995,2]
[317611335,1709872242551,-749.75,0.00022995,2]
[317611337,1709872242560,-749.75,0.00022995,2]
[317611339,1709872242569,-753.61,0.00022995,2]
[317611341,1709872242578,-753.61,0.00022995,2]
[317611343,1709872242587,-500.0,0.00022995,2]
[317611345,1709872242596,-334.9322038,0.00022995,2]
[317611347,1709872242605,-12623.53,0.00022995,2]
[317611349,1709872242614,-12623.53,0.00022995,2]
[317611351,1709872242623,-500.0,0.00022995,2]
[317611353,1709872242632,-1235.55,0.00022995,2]
[317611355,1709872242640,-3045.53,0.00022995,2]
[317611357,1709872242649,-3045.53,0.00022995,2]
[317611359,1709872242658,-500.0,0.00022995,2]
[317611361,1709872242668,-627.00681403,0.00022995,2]
[317611363,1709872242677,-1180.42,0.00022995,2]
[317611365,1709872242686,-1180.42,0.00022995,2]
[317611367,1709872242695,-8717.1,0.00022995,2]
[317611369,1709872242704,-500.0,0.00022996,2]
[317611371,1709872242712,-1502.06,0.00022996,2]
[317611373,1709872242721,-500.0,0.00022996,2]
[317611375,1709872242731,-500.0,0.00022996,2]
[317611377,1709872242740,-500.0,0.00022996,2]
[317611379,1709872242748,-1329.73,0.00022996,2]
[317611381,1709872242758,-500.0,0.00022996,2]
[317611383,1709872242767,-500.0,0.00022996,2]
[317611385,1709872242776,-500.0,0.00022996,2]
[317611387,1709872242785,-509.56,0.00022996,2]
[317611389,1709872242795,-500.0,0.00022996,2]
[317611391,1709872242804,-3602.61,0.00022996,2]
[317611393,1709872242814,-3602.61,0.00022996,2]
[317611395,1709872242823,-1235.01,0.00022996,2]
[317611397,1709872242833,-1235.01,0.00022996,2]
[317611399,1709872242843,-500.0,0.00022996,2]
[317611401,1709872242852,-500.0,0.00022996,2]
[317611403,1709872242862,-500.0,0.00022996,2]
[317611405,1709872242871,-500.0,0.00022996,2]
[317611407,1709872242880,-500.0,0.00022996,2]
[317611409,1709872242889,-500.0,0.00022996,2]
[317611411,1709872242899,-500.0,0.00022996,2]
[317611413,1709872242909,-856.38,0.00022996,2]
[317611415,1709872242918,-856.38,0.00022996,2]
[317611417,1709872242927,-1620.53,0.00022996,2]
[317611419,1709872242935,-500.0,0.00022996,2]
[317611421,1709872242944,-1620.53,0.00022996,2]
[317611423,1709872242953,-500.0,0.00022996,2]
[317611425,1709872242962,-534.3,0.00022996,2]
[317611426,1709872242972,-534.3,0.00022996,2]
[317611429,1709872242983,-749.75,0.00022996,2]
[317611430,1709872242993,-749.75,0.00022996,2]
[317611433,1709872243002,-749.75,0.00022996,2]
[317611435,1709872243014,-753.61,0.00022996,2]
[317611437,1709872243023,-753.61,0.00022996,2]
[317611439,1709872243032,-12623.53,0.00022996,2]
[317611441,1709872243042,-12623.53,0.00022996,2]
[317611443,1709872243051,-12623.53,0.00022996,2]
[317611445,1709872243060,-500.0,0.00022996,2]
[317611447,1709872243072,-500.0,0.00022996,2]
[317611449,1709872243082,-1235.55,0.00022996,2]
[317611451,1709872243091,-1235.55,0.00022996,2]
[317611453,1709872243100,-3045.53,0.00022996,2]
[317611455,1709872243109,-3045.53,0.00022996,2]
[317611457,1709872243119,-1180.42,0.00022996,2]
[317611459,1709872243127,-1180.42,0.00022996,2]
[317611461,1709872243139,-1180.42,0.00022996,2]
[317611463,1709872243147,-500.0,0.00022996,2]
[317611465,1709872243158,-8717.1,0.00022996,2]
[317611467,1709872243168,-8717.1,0.00022996,2]
[317611469,1709872243177,-500.0,0.00022997,2]
[317611471,1709872243186,-500.0,0.00022997,2]
[317611473,1709872243195,-604.85216227,0.00022997,2]
[317611475,1709872243204,-1502.06,0.00022997,2]
[317611477,1709872243213,-1502.06,0.00022997,2]
[317611479,1709872243224,-1502.06,0.00022997,2]
[317611481,1709872243234,-1502.06,0.00022997,2]
[317611483,1709872243244,-256.94,0.00022997,2]
[317611485,1709872243252,-562.44,0.00022997,2]
[317611487,1709872243261,-626.4,0.00022997,2]
[317611489,1709872243271,-1329.73,0.00022997,2]
[317611491,1709872243279,-1329.73,0.00022997,2]
[317611493,1709872243288,-1329.73,0.00022997,2]
[317611495,1709872243297,-1329.73,0.00022997,2]
[317611497,1709872243306,-500.0,0.00022997,2]
[317611499,1709872243315,-500.0,0.00022997,2]
[317611501,1709872243324,-569.03043624,0.00022997,2]
[317611503,1709872243333,-500.0,0.00022997,2]
[317611505,1709872243342,-500.0,0.00022997,2]
[317611507,1709872243351,-500.0,0.00022997,2]
[317611509,1709872243360,-500.0,0.00022997,2]
[317611511,1709872243368,-500.0,0.00022997,2]
[317611513,1709872243377,-289.1564883,0.00022997,2]
[317611515,1709872243386,-500.0,0.00022997,2]
[317611517,1709872243395,-500.0,0.00022997,2]
[317611519,1709872243404,-500.0,0.00022997,2]
[317611521,1709872243413,-500.0,0.00022997,2]
[317611523,1709872243422,-3602.61,0.00022997,2]
[317611525,1709872243431,-3602.61,0.00022997,2]
[317611527,1709872243440,-3602.61,0.00022997,2]
[317611530,1709872243449,-3602.61,0.00022997,2]
[317611532,1709872243458,-1235.01,0.00022997,2]
[317611534,1709872243467,-1235.01,0.00022997,2]
[317611536,1709872243479,-1235.01,0.00022997,2]
[317611538,1709872243489,-1235.01,0.00022997,2]
[317611540,1709872243500,-500.0,0.00022997,2]
[317611542,1709872243511,-500.0,0.00022997,2]
[317611544,1709872243521,-500.0,0.00022997,2]
[317611546,1709872243531,-500.0,0.00022997,2]
[317611548,1709872243540,-500.0,0.00022997,2]
[317611550,1709872243550,-500.0,0.00022997,2]
[317611552,1709872243559,-500.5,0.00022997,2]
[317611554,1709872243568,-500.0,0.00022997,2]
[317611556,1709872243577,-500.0,0.00022997,2]
[317611558,1709872243586,-856.38,0.00022997,2]
[317611560,1709872243595,-856.38,0.00022997,2]
[317611562,1709872243604,-500.0,0.00022997,2]
[317611564,1709872243613,-856.38,0.00022997,2]
[317611566,1709872243622,-500.0,0.00022997,2]
[317611568,1709872243631,-856.38,0.00022997,2]
[317611570,1709872243640,-1620.53,0.00022997,2]
[317611572,1709872243648,-500.0,0.00022997,2]
[317611574,1709872243657,-502.44003634,0.00022997,2]
[317611576,1709872243667,-1620.53,0.00022997,2]
[317611578,1709872243679,-1620.53,0.00022997,2]
[317611580,1709872243688,-1620.53,0.00022997,2]
[317611582,1709872243697,-534.3,0.00022997,2]
[317611584,1709872243706,-534.3,0.00022997,2]
[317611586,1709872243715,-534.3,0.00022997,2]
[317611588,1709872243728,-534.3,0.00022997,2]
[317611590,1709872243737,-749.75,0.00022997,2]
[317611592,1709872243746,-749.75,0.00022997,2]
[317611594,1709872243755,-749.75,0.00022997,2]
[317611596,1709872243763,-749.75,0.00022997,2]
[317611598,1709872243772,-749.75,0.00022997,2]
[317611600,1709872243781,-753.61,0.00022997,2]
[317611601,1709872243791,-749.75,0.00022997,2]
[317611603,1709872243799,-753.61,0.00022997,2]
[317611605,1709872243808,-749.75,0.00022997,2]
[317611607,1709872243817,-753.61,0.00022997,2]
[317611609,1709872243826,-749.75,0.00022997,2]
[317611611,1709872243836,-753.61,0.00022997,2]
[317611613,1709872243845,-749.88,0.00022997,2]
[317611615,1709872243854,-12623.53,0.00022997,2]
[317611617,1709872243863,-12623.53,0.00022997,2]
[317611619,1709872243872,-12623.53,0.00022997,2]
[317611621,1709872243881,-12623.53,0.00022997,2]
[317611623,1709872243890,-12623.53,0.00022997,2]
[317611625,1709872243899,-500.0,0.00022997,2]
[317611627,1709872243908,-12623.53,0.00022997,2]
[317611629,1709872243917,-500.0,0.00022997,2]
[317611631,1709872243926,-12623.53,0.00022997,2]
[317611633,1709872243934,-500.0,0.00022997,2]
[317611635,1709872243944,-12623.53852634,0.00022997,2]
[317611637,1709872243953,-500.0,0.00022997,2]
[317611639,1709872243962,-1235.55,0.00022997,2]
[317611641,1709872243971,-1235.55,0.00022997,2]
[317611643,1709872243980,-1235.55,0.00022997,2]
[317611645,1709872243989,-1235.55,0.00022997,2]
[317611646,1709872243998,-3045.53,0.00022997,2]
[317611648,1709872244008,-3045.53,0.00022997,2]
[317611650,1709872244019,-3045.53,0.00022997,2]
[317611652,1709872244028,-3045.53,0.00022997,2]
[317611654,1709872244037,-1180.42,0.00022997,2]